Workbook

Sheet паспорт
A1: ПАТ "УКРТРАНСГАЗ" | G1: ПАСПОРТ ФІЗИКО-ХІМІЧНИХ ПОКАЗНИКІВ ПРИРОДНОГО ГАЗУ № 652
A2: Філія "УМГ "ХАРКІВТРАНСГАЗ" | G2: переданого Сєвєродонецьким ЛВУМГ та прийнятого ПАТ "Луганськгаз"
A3: Сєвєродонецьке ЛВУМГ | G3: Маршрут № 652
A4: Вимірювальна хіміко-аналітична лабораторія
A5: Свідоцтво № РЬ089/2014 чинно до 06.06.2017 р. | K5: по газопроводу "Луганськ-Лисичанськ" | V5: за період з | X5: 01.02.2017 р. | Z5: по | AA5: 28.02.2017 р.
A7: Число місяця | B7: Компонентний склад, мол. % | N7: Фізико-хімічні показники газу обчислені на основі компонентного складу, 101,325 кПа | X7: Температура точки роси за вологою (Р = 3.92 МПа), °С | Y7: Температура точки роси за вуглеводнями, °С | Z7: Вміст сірководню, г/м3 | AA7: Вміст меркаптанової сірки, г/м3 | AB7: Вміст механічних домішок, г/м3
N8: Густина абсолютна, кг/м3,при 20 °С, | O8: Температура вимірювання/згоряння при 20/25°С
B9: метан, С1 | C9: етан, С2 | D9: пропан, С3 | E9: ізо-бутан, і-С4 | F9: н-бутан, н-С4 | G9: нео-пентан, нео-С5 | H9: ізо-пентан, і-С5 | I9: н-пентан, н-С5 | J9: гексани та вищі, С6+ | K9: кисень, О2 | L9: азот, N2 | M9: діоксид вуглецю, CО2 | O9: Теплота згоряння нижча | R9: Теплота згоряння вища | U9: Число Воббе вище
O10: ккал/м³ | P10: МДж/м³ | Q10: кВт⋅год/м³ | R10: ккал/м³ | S10: МДж/м³ | T10: кВт⋅год/м³ | U10: ккал/м³ | V10: МДж/м³ | W10: кВт⋅год/м³
A11: 1 | B11: 91.1322 | C11: 3.4268 | D11: 1.1062 | E11: 0.1374 | F11: 0.2408 | G11: 0.0069 | H11: 0.0601 | I11: 0.0533 | J11: 0.1053 | K11: 0.0081 | L11: 2.8176 | M11: 0.9053 | N11: 0.7385 | O11: =P11*238.8459 -> 8169.938971 | P11: 34.2059 | Q11: =P11/3.6 -> 9.501638889 | R11: =S11*238.8459 -> 9047.291615 | S11: 37.8792 | T11: =S11/3.6 -> 10.522 | U11: =V11/0.0041868 -> 11554.12248 | V11: 48.3748 | W11: =V11/3.6 -> 13.43744444 | AC11: =SUM(B11:M11)+$K$42+$N$42 -> 100
A12: 2 | O12: =P12*238.8459 -> 8169.938971 | P12: 34.2059 | Q12: =P12/3.6 -> 9.501638889 | R12: =S12*238.8459 -> 9047.291615 | S12: 37.8792 | T12: =S12/3.6 -> 10.522 | U12: =V12/0.0041868 -> 11554.12248 | V12: 48.3748 | W12: =V12/3.6 -> 13.43744444 | AC12: 0
A13: 3 | O13: 8169.938971 | P13: 34.2059 | Q13: 9.501638889 | R13: 9047.291615 | S13: 37.8792 | T13: 10.522 | U13: 11554.12248 | V13: 48.3748 | W13: 13.43744444 | AC13: 0 | AD13: =IF(AC13=100,"ОК"," ") -> 
A14: 4 | O14: 8169.938971 | P14: 34.2059 | Q14: 9.501638889 | R14: 9047.291615 | S14: 37.8792 | T14: 10.522 | U14: 11554.12248 | V14: 48.3748 | W14: 13.43744444 | AC14: 0 | AD14: =IF(AC14=100,"ОК"," ") -> 
A15: 5 | O15: 8169.938971 | P15: 34.2059 | Q15: 9.501638889 | R15: 9047.291615 | S15: 37.8792 | T15: 10.522 | U15: 11554.12248 | V15: 48.3748 | W15: 13.43744444 | AC15: 0
A16: 6 | O16: 8169.938971 | P16: 34.2059 | Q16: 9.501638889 | R16: 9047.291615 | S16: 37.8792 | T16: 10.522 | U16: 11554.12248 | V16: 48.3748 | W16: 13.43744444 | AC16: 0
A17: 7 | O17: 8169.938971 | P17: 34.2059 | Q17: 9.501638889 | R17: 9047.291615 | S17: 37.8792 | T17: 10.522 | U17: 11554.12248 | V17: 48.3748 | W17: 13.43744444 | AC17: 0
A18: 8 | O18: 8169.938971 | P18: 34.2059 | Q18: 9.501638889 | R18: 9047.291615 | S18: 37.8792 | T18: 10.522 | U18: 11554.12248 | V18: 48.3748 | W18: 13.43744444 | AC18: 0
A19: 9 | O19: 8169.938971 | P19: 34.2059 | Q19: 9.501638889 | R19: 9047.291615 | S19: 37.8792 | T19: 10.522 | U19: 11554.12248 | V19: 48.3748 | W19: 13.43744444 | AC19: 0
A20: 10 | B20: 91.2967 | C20: 3.2886 | D20: 1.0953 | E20: 0.1373 | F20: 0.2381 | G20: 0.0039 | H20: 0.0602 | I20: 0.0523 | J20: 0.0584 | K20: 0.0105 | L20: 2.8235 | M20: 0.9352 | N20: 0.7364 | O20: =P20*238.8459 -> 8140.919194 | P20: 34.0844 | Q20: =P20/3.6 -> 9.467888889 | R20: =S20*238.8459 -> 9016.074456 | S20: 37.7485 | T20: =S20/3.6 -> 10.48569444 | U20: =V20/0.0041868 -> 11530.42897 | V20: 48.2756 | W20: =V20/3.6 -> 13.40988889 | Z20: 0.0016 | AA20: 0.0018 | AB20: відс | AC20: 100 | AD20: ОК
A21: 11 | O21: =P21*238.8459 -> 8140.919194 | P21: 34.0844 | Q21: =P21/3.6 -> 9.467888889 | R21: =S21*238.8459 -> 9016.074456 | S21: 37.7485 | T21: =S21/3.6 -> 10.48569444 | U21: =V21/0.0041868 -> 11530.42897 | V21: 48.2756 | W21: =V21/3.6 -> 13.40988889 | AC21: 0
A22: 12 | O22: 8140.919194 | P22: 34.0844 | Q22: 9.467888889 | R22: 9016.074456 | S22: 37.7485 | T22: 10.48569444 | U22: 11530.42897 | V22: 48.2756 | W22: 13.40988889 | AC22: 0
A23: 13 | O23: 8140.919194 | P23: 34.0844 | Q23: 9.467888889 | R23: 9016.074456 | S23: 37.7485 | T23: 10.48569444 | U23: 11530.42897 | V23: 48.2756 | W23: 13.40988889 | AC23: 0
A24: 14 | O24: 8140.919194 | P24: 34.0844 | Q24: 9.467888889 | R24: 9016.074456 | S24: 37.7485 | T24: 10.48569444 | U24: 11530.42897 | V24: 48.2756 | W24: 13.40988889 | AC24: 0
A25: 15 | O25: 8140.919194 | P25: 34.0844 | Q25: 9.467888889 | R25: 9016.074456 | S25: 37.7485 | T25: 10.48569444 | U25: 11530.42897 | V25: 48.2756 | W25: 13.40988889 | AC25: 0
A26: 16 | O26: 8140.919194 | P26: 34.0844 | Q26: 9.467888889 | R26: 9016.074456 | S26: 37.7485 | T26: 10.48569444 | U26: 11530.42897 | V26: 48.2756 | W26: 13.40988889 | AC26: 0
A27: 17 | O27: 8140.919194 | P27: 34.0844 | Q27: 9.467888889 | R27: 9016.074456 | S27: 37.7485 | T27: 10.48569444 | U27: 11530.42897 | V27: 48.2756 | W27: 13.40988889 | AC27: 0
A28: 18 | O28: 8140.919194 | P28: 34.0844 | Q28: 9.467888889 | R28: 9016.074456 | S28: 37.7485 | T28: 10.48569444 | U28: 11530.42897 | V28: 48.2756 | W28: 13.40988889 | AC28: 0
A29: 19 | O29: 8140.919194 | P29: 34.0844 | Q29: 9.467888889 | R29: 9016.074456 | S29: 37.7485 | T29: 10.48569444 | U29: 11530.42897 | V29: 48.2756 | W29: 13.40988889 | AC29: 0
A30: 20 | O30: 8140.919194 | P30: 34.0844 | Q30: 9.467888889 | R30: 9016.074456 | S30: 37.7485 | T30: 10.48569444 | U30: 11530.42897 | V30: 48.2756 | W30: 13.40988889 | AC30: 0 | AD30: =IF(AC30=100,"ОК"," ") -> 
A31: 21 | B31: 90.7946 | C31: 3.3799 | D31: 1.1631 | E31: 0.1529 | F31: 0.2718 | G31: 0.004 | H31: 0.0638 | I31: 0.054 | J31: 0.0633 | K31: 0.0127 | L31: 2.8181 | M31: 1.2218 | N31: 0.7422 | O31: =P31*238.8459 -> 8144.477998 | P31: 34.0993 | Q31: =P31/3.6 -> 9.472027778 | R31: =S31*238.8459 -> 9019.036145 | S31: 37.7609 | T31: =S31/3.6 -> 10.48913889 | U31: =V31/0.0041868 -> 11488.96532 | V31: 48.102 | W31: =V31/3.6 -> 13.36166667 | X31: -3.2 | Y31: -2.5 | AC31: 100 | AD31: ОК
A32: 22 | O32: =P32*238.8459 -> 8144.477998 | P32: 34.0993 | Q32: =P32/3.6 -> 9.472027778 | R32: =S32*238.8459 -> 9019.036145 | S32: 37.7609 | T32: =S32/3.6 -> 10.48913889 | U32: =V32/0.0041868 -> 11488.96532 | V32: 48.102 | W32: =V32/3.6 -> 13.36166667 | AC32: 0
A33: 23 | O33: 8144.477998 | P33: 34.0993 | Q33: 9.472027778 | R33: 9019.036145 | S33: 37.7609 | T33: 10.48913889 | U33: 11488.96532 | V33: 48.102 | W33: 13.36166667 | AC33: 0 | AD33: =IF(AC33=100,"ОК"," ") -> 
A34: 24 | O34: 8144.477998 | P34: 34.0993 | Q34: 9.472027778 | R34: 9019.036145 | S34: 37.7609 | T34: 10.48913889 | U34: 11488.96532 | V34: 48.102 | W34: 13.36166667 | AC34: 0
A35: 25 | O35: 8144.477998 | P35: 34.0993 | Q35: 9.472027778 | R35: 9019.036145 | S35: 37.7609 | T35: 10.48913889 | U35: 11488.96532 | V35: 48.102 | W35: 13.36166667 | AC35: 0
A36: 26 | O36: 8144.477998 | P36: 34.0993 | Q36: 9.472027778 | R36: 9019.036145 | S36: 37.7609 | T36: 10.48913889 | U36: 11488.96532 | V36: 48.102 | W36: 13.36166667 | AC36: 0
A37: 27 | O37: 8144.477998 | P37: 34.0993 | Q37: 9.472027778 | R37: 9019.036145 | S37: 37.7609 | T37: 10.48913889 | U37: 11488.96532 | V37: 48.102 | W37: 13.36166667 | AC37: 0
A38: 28 | O38: 8144.477998 | P38: 34.0993 | Q38: 9.472027778 | R38: 9019.036145 | S38: 37.7609 | T38: 10.48913889 | U38: 11488.96532 | V38: 48.102 | W38: 13.36166667 | AC38: 0
A39: 29 | AC39: 0
A40: 30 | AC40: 0
A41: 31 | AC41: 0
A42: Рівень одоризації відповідає чинним нормативним документам | O42: =SUMPRODUCT(O11:O41,' розрахунок'!F7:F37)/' розрахунок'!F38 -> 8152.196471 | P42: =SUMPRODUCT(P11:P41,' розрахунок'!F7:F37)/' розрахунок'!F38 -> 34.1316157 | Q42: =SUMPRODUCT(Q11:Q41,' розрахунок'!F7:F37)/' розрахунок'!F38 -> 9.481004362 | R42: =SUMPRODUCT(R11:R41,' розрахунок'!F7:F37)/' розрахунок'!F38 -> 9028.001504 | S42: =SUMPRODUCT(S11:S41,' розрахунок'!F7:F37)/' розрахунок'!F38 -> 37.79843616 | T42: =SUMPRODUCT(T11:T41,' розрахунок'!F7:F37)/' розрахунок'!F38 -> 10.4995656
H43: Середньозважене значення теплоти згоряння:
B46: Начальник управління Сєвєродонецького ЛВУМГ Головко Ю.О.
C47: Підрозділу підприємства, якому підпорядкована лабораторія | O47: прізвище | R47: підпис | V47: дата
B48: Інженер ІІ кат.вимірювальної хіміко-аналітичної лабораторії Єрьоменко М.О.
C49: Лабораторія, де здійснювалось вимірювання газу | O49: прізвище | R49: підпис | V49: дата
B50: Начальник служби метрології Ісаєв В.С.
C51: Підрозділу, відповідального за облік газу за маршрутом | O51: прізвище | R51: підпис | V51: дата

Sheet розрахунок (hidden)
A2: Додаток до Паспорту фізико-хімічних показників природного газу по маршруту № 652
A4: Число місяця | B4: Теплота згоряння вища, МДж/м3 | C4: Луганська область | F4: Загальний обсяг газу, м3
C5: Обсяг газу переданого за добу, м3
C6: ГРС Попасна | D6: ГРС с.Карбонит | E6: ГРС Мирна Долина
A7: 1 | B7: 37.8792 | C7: 91158.95 | D7: 37915.42 | E7: 9590.31 | F7: =SUM(C7:E7) -> 138664.68
A8: 2 | B8: 37.8792 | C8: 84179.16 | D8: 38940.45 | E8: 9107.74 | F8: 132227.35
A9: 3 | B9: 37.8792 | C9: 82356.09 | D9: 37160.39 | E9: 8707.42 | F9: 128223.9
A10: 4 | B10: 37.8792 | C10: 73357.56 | D10: 31076.36 | E10: 8087.93 | F10: 112521.85
A11: 5 | B11: 37.8792 | C11: 71198.81 | D11: 32390.13 | E11: 7779.6 | F11: 111368.54
A12: 6 | B12: 37.8792 | C12: 84922.71 | D12: 37906.54 | E12: 8505.42 | F12: 131334.67
A13: 7 | B13: 37.8792 | C13: 99037.7 | D13: 42978.1 | E13: 9730.22 | F13: 151746.02
A14: 8 | B14: 37.8792 | C14: 103757 | D14: 44963.52 | E14: 10414.49 | F14: 159135.01
A15: 9 | B15: 37.8792 | C15: 100105.16 | D15: 43849.99 | E15: 10076.94 | F15: 154032.09
A16: 10 | B16: 37.7485 | C16: 98725.41 | D16: 41700.06 | E16: 9690.8 | F16: 150116.27
A17: 11 | B17: 37.7485 | C17: 87108.45 | D17: 37888.8 | E17: 9136.39 | F17: 134133.64
A18: 12 | B18: 37.7485 | C18: 83171.05 | D18: 35927.6 | E18: 8733.75 | F18: 127832.4
A19: 13 | B19: 37.7485 | C19: 83916.16 | D19: 34691.61 | E19: 8376.49 | F19: 126984.26
A20: 14 | B20: 37.7485 | C20: 84806.16 | D20: 35582.09 | E20: 8614.99 | F20: 129003.24
A21: 15 | B21: 37.7485 | C21: 82777.44 | D21: 33306.64 | E21: 8248.3 | F21: 124332.38
A22: 16 | B22: 37.7485 | C22: 85372.3 | D22: 37626.86 | E22: 8523.41 | F22: 131522.57
A23: 17 | B23: 37.7485 | C23: 82999.25 | D23: 34779.71 | E23: 8525.6 | F23: 126304.56
A24: 18 | B24: 37.7485 | C24: 72480.63 | D24: 30615.51 | E24: 8010.53 | F24: 111106.67
A25: 19 | B25: 37.7485 | C25: 69374.34 | D25: 28352.94 | E25: 7575.39 | F25: 105302.67
A26: 20 | B26: 37.7485 | C26: 70641.84 | D26: 27440.04 | E26: 7030.58 | F26: 105112.46
A27: 21 | B27: 37.7609 | C27: 67303.34 | D27: 26288.99 | E27: 6908.53 | F27: 100500.86
A28: 22 | B28: 37.7609 | C28: 67646.92 | D28: 26593.59 | E28: 6941.08 | F28: 101181.59
A29: 23 | B29: 37.7609 | C29: 68555.37 | D29: 27484.63 | E29: 7075.22 | F29: 103115.22
A30: 24 | B30: 37.7609 | C30: 64197.55 | D30: 24544.17 | E30: 6629.52 | F30: 95371.24
A31: 25 | B31: 37.7609 | C31: 61841.43 | D31: 29172.56 | E31: 6719.92 | F31: 97733.91
A32: 26 | B32: 37.7609 | C32: 63915.49 | D32: 30178.87 | E32: 7257.14 | F32: 101351.5
A33: 27 | B33: 37.7609 | C33: 68083.06 | D33: 28876.54 | E33: 7237.62 | F33: 104197.22
A34: 28 | B34: 37.7609 | C34: 63023.8 | D34: 25246.79 | E34: 6751.76 | F34: 95022.35
A35: 29
A36: 30
A37: 31
A38: Загальний обсяг газу, м3 | C38: =SUM(C7:C37) -> 2216013.13 | D38: =SUM(D7:D37) -> 943478.9 | E38: =SUM(E7:E37) -> 229987.09 | F38: =SUM(F7:F37) -> 3389479.12
A39: Енергія, МДж | C39: =SUMPRODUCT(B7:B37,C7:C37) -> 83760938.83 | D39: =SUMPRODUCT(B7:B37,D7:D37) -> 35662997.79 | E39: =SUMPRODUCT(B7:B37,E7:E37) -> 8693073.534 | F39: =SUMPRODUCT(B7:B37,F7:F37) -> 128117010.1
A40: Теплота згоряння (середньозважене значення за місяць), МДж/м³ | C40: =C39/C38 -> 37.79803364 | D40: =D39/D38 -> 37.79946514 | E40: =E39/E38 -> 37.79809351 | F40: =F39/F38 -> 37.79843616
A41: Теплота згоряння (середньозважене значення за місяць), ккал/м³ | C41: =C40*238.8459 -> 9027.905362 | D41: =D40*238.8459 -> 9028.24727 | E41: =E40*238.8459 -> 9027.919663 | F41: =F40*238.8459 -> 9028.001504
A42: Теплота згоряння (середньозважене значення за місяць), кВт*год./м³ | C42: =C40/3.6 -> 10.49945379 | D42: =D40/3.6 -> 10.49985143 | E42: =E40/3.6 -> 10.49947042 | F42: =F40/3.6 -> 10.4995656

Sheet додаток
A2: Додаток до Паспорту фізико-хімічних показників природного газу №652
A4: Область | B4: ГРС, прямий споживач | C4: Cередньозважене значення вищої теплоти згоряння
C5: МДж/м³ | D5: ккал/м³ | E5: кВт*год./м³
A6: Луганська область | B6: ГРС Попасна | C6: 37.8 | D6: 9028 | E6: 10.5
B7: ГРС с.Карбонит | C7: 37.8 | D7: 9028 | E7: 10.5
B8: ГРС Мирна Долина | C8: 37.8 | D8: 9028 | E8: 10.5
A9: Середньозважене значення вищої теплоти згоряння по маршруту №652 | C9: 37.8 | D9: 9028 | E9: 10.5
A13: Начальник управління Сєвєродонецького ЛВУМГ Головко Ю.О.
A14: Підрозділу підприємства, якому підпорядкована лабораторія | D14: прізвище | E14: підпис | F14: дата
A15: Інженер ІІ кат.вимірювальної хіміко-аналітичної лабораторії Єрьоменко М.О.
A16: Лабораторія, де здійснювалось вимірювання газу | D16: прізвище | E16: підпис | F16: дата
A17: Начальник служби метрології Ісаєв В.С.
A18: Підрозділу, відповідального за облік газу за маршрутом | D18: прізвище | E18: підпис | F18: дата
F24: дата
F26: дата
F28: дата

Sheet variablesList (hidden)
A1: 3 | B1: x:\gaysin | C1: 10, 11, 24, 25, 127, 128, 132, 180, 207, 215 | D1: x:\
B2: x:\Illinci
B3: x:\Talne
